fUST/lending_fUST_20251231
["ID","MTS","AMOUNT","RATE_DAILY","PERIOD"]
[400138360,1767147043373,-2000.0,0.00014916,2]
[400138362,1767147043383,-154.02698321,0.00014916,2]
[400138365,1767147043394,-1707.04891634,0.00014916,2]
[400138368,1767147043404,-2000.0,0.00014916,2]
[400138371,1767147043413,-160.40400037,0.00014916,2]
[400138373,1767147043422,-2000.0,0.00014916,2]
[400138376,1767147043431,-2000.0,0.00014916,2]
[400138379,1767147043441,-2000.0,0.00014916,2]
[400138382,1767147043450,-2000.0,0.00014916,2]
[400138385,1767147043460,-924.40432946,0.00014916,2]
[400138388,1767147043469,-2000.0,0.00014916,2]
[400138391,1767147043478,-2351.0,0.00014952,2]
[400138393,1767147043487,-720.0,0.00014995,2]
[400138395,1767147043496,-100000.0,0.00015028,2]
[400138397,1767147043505,-178.389129,0.00015068,2]
[400138399,1767147043514,-803.5950816,0.00015068,2]
[400138400,1767147043524,-3814.01,0.00015091,2]
[400138402,1767147043533,-500.0,0.0001519,2]
[400138404,1767147043543,-1200.0,0.00015316,2]
[400138406,1767147043552,-3865.9399627,0.00015338,2]
[400138408,1767147043561,-531.44929217,0.00015342,2]
[400138410,1767147043570,-499.3887162,0.00015342,2]
[400138412,1767147043579,-648.95093186,0.00015342,2]
[400138414,1767147043588,-503.07338889,0.00015342,2]
[400138416,1767147043597,-2000.0,0.00015342,2]
[400138418,1767147043607,-915.94669576,0.00015342,2]
[400138420,1767147043616,-402.01463508,0.00015342,2]
[400138422,1767147043625,-1005.23629678,0.00015342,2]
[400138424,1767147043634,-1072.64960671,0.00015342,2]
[400138426,1767147043643,-516.87119182,0.00015342,2]
[400138428,1767147043653,-1004.96402588,0.00015342,2]
[400138430,1767147043662,-705.75062246,0.00015342,2]
[400138432,1767147043671,-2129.31875673,0.00015342,2]
[400138434,1767147043681,-1693.91846211,0.00015342,2]
[400138436,1767147043690,-791.10184317,0.00015342,2]
[400138437,1767147043699,-2000.0,0.00015342,2]
[400138439,1767147043709,-507.91355612,0.00015342,2]
[400138441,1767147043718,-1165.86238698,0.00015342,2]
[400138444,1767147043728,-1384.30858632,0.00015342,2]
[400138446,1767147043738,-1297.38655962,0.00015342,2]
[400138447,1767147043747,-1966.55656616,0.00015342,2]
[400138449,1767147043756,-2000.0,0.00015342,2]
[400138451,1767147043765,-2001.67734075,0.00015342,2]
[400138453,1767147043774,-502.02163491,0.00015342,2]
[400138455,1767147043784,-501.68831439,0.00015342,2]
[400138457,1767147043793,-602.77058771,0.00015342,2]
[400138459,1767147043802,-502.54472719,0.00015342,2]
[400138461,1767147043812,-2000.0,0.00015342,2]
[400138463,1767147043822,-2000.0,0.00015342,2]
[400138465,1767147043831,-502.12822371,0.00015342,2]
[400138467,1767147043841,-2000.0,0.00015342,2]
[400138469,1767147043850,-1502.28673473,0.00015342,2]
[400138471,1767147043860,-1504.50560439,0.00015342,2]
[400138473,1767147043869,-2001.75988266,0.00015342,2]
[400138475,1767147043878,-864.0,0.00015375,2]
[400138477,1767147043887,-291.53853571,0.00015464,2]
[400138479,1767147043897,-2500.0,0.00015464,2]
[400138481,1767147043906,-2500.0,0.00015464,2]
[400138483,1767147043916,-2500.0,0.00015464,2]
[400138485,1767147043925,-318.87701711,0.00015464,2]
[400138487,1767147043934,-2500.0,0.00015464,2]
[400138489,1767147043944,-768.13998817,0.00015464,2]
[400138491,1767147043953,-2500.0,0.00015464,2]
[400138493,1767147043963,-2500.0,0.00015464,2]
[400138495,1767147043972,-501.82211209,0.00015464,2]
[400138497,1767147043981,-2500.0,0.00015464,2]
[400138499,1767147043992,-2500.0,0.00015464,2]
[400138501,1767147044001,-2500.0,0.00015464,2]
[400138503,1767147044010,-2500.0,0.00015464,2]
[400138505,1767147044019,-2500.0,0.00015464,2]
[400138507,1767147044029,-269.75973457,0.00015464,2]
[400138509,1767147044038,-2500.0,0.00015464,2]
[400138511,1767147044047,-2500.0,0.00015464,2]
[400138513,1767147044057,-500.93902034,0.00015586,2]
[400138515,1767147044067,-1202.05494296,0.00015864,2]
[400138517,1767147044076,-2104.21263858,0.0001589,2]
[400138518,1767147044086,-903.04207638,0.0001589,2]
[400138520,1767147044095,-2500.0,0.0001589,2]
[400138522,1767147044105,-2500.0,0.0001589,2]
[400138524,1767147044114,-1519.2068046,0.0001589,2]
[400138526,1767147044124,-502.92641723,0.0001589,2]
[400138528,1767147044133,-11704.5472021,0.00015975,2]
[400138530,1767147044142,-500.0,0.00016,2]
[400138532,1767147044153,-3000.0,0.00016012,2]
[400138534,1767147044162,-3000.0,0.00016012,2]
[400138536,1767147044171,-2508.62893178,0.00016012,2]
[400138538,1767147044180,-3000.0,0.00016012,2]
[400138540,1767147044189,-356.70683283,0.00016012,2]
[400138542,1767147044198,-3000.0,0.00016012,2]
[400138544,1767147044208,-3000.0,0.00016012,2]
[400138546,1767147044217,-3000.0,0.00016012,2]
[400138548,1767147044227,-3000.0,0.00016012,2]
[400138550,1767147044236,-3000.0,0.00016012,2]
[400138552,1767147044245,-194.42033107,0.00016012,2]
[400138554,1767147044255,-3000.0,0.00016012,2]
[400138556,1767147044264,-3000.0,0.00016012,2]
[400138558,1767147044273,-5085.35,0.00016252,2]
[400138560,1767147044283,-823.0,0.0001633,2]
[400138562,1767147044292,-500.0,0.00016407,2]
[400138564,1767147044301,-500.0,0.00016438,2]
[400138566,1767147044310,-495.78642928,0.00016438,2]
[400138568,1767147044321,-3000.0,0.00016438,2]
[400138570,1767147044332,-3000.0,0.00016438,2]
[400138571,1767147044341,-3292.0,0.00016447,2]
[400138573,1767147044350,-360.70731267,0.00016455,2]
[400138575,1767147044360,-250.0,0.00016458,2]
[400138577,1767147044370,-200.0,0.00016473,2]
[400138579,1767147044379,-341.86675576,0.0001656,2]
[400138581,1767147044389,-3500.0,0.0001656,2]
[400138583,1767147044399,-576.89571839,0.0001656,2]
[400138585,1767147044408,-3500.0,0.0001656,2]
[400138587,1767147044418,-2800.51799825,0.0001656,2]
[400138589,1767147044428,-952.19024228,0.0001656,2]
[400138591,1767147044437,-3081.75382253,0.0001656,2]
[400138593,1767147044446,-3522.87177869,0.0001656,2]
[400138595,1767147044456,-3500.0,0.0001656,2]
[400138597,1767147044465,-3500.0,0.0001656,2]
[400138599,1767147044474,-195.572523,0.00016797,2]
[400138601,1767147044483,-1000.0,0.00016912,2]
[400138603,1767147044493,-3500.0,0.00016986,2]
[400138605,1767147044502,-3500.0,0.00016986,2]
[400138607,1767147044511,-716.30033327,0.00017108,2]
[400138609,1767147044521,-1511.18997277,0.00017108,2]
[400138611,1767147044529,-4000.0,0.00017108,2]
[400138613,1767147044538,-4000.0,0.00017108,2]
[400138615,1767147044547,-1030.57947503,0.00017159,2]
[400138617,1767147044556,-500.0,0.0001727,2]
[400138619,1767147044565,-6356.68,0.00017413,2]
[400138621,1767147044575,-4000.0,0.00017534,2]
[400138623,1767147044584,-4000.0,0.00017534,2]
[400138625,1767147044593,-1513.30440151,0.00017656,2]
[400138627,1767147044602,-3030.39894568,0.00017656,2]
[400138629,1767147044611,-1168.06182939,0.00017747,2]
[400138631,1767147044620,-47277.43634166,0.000178,3]
[400138632,1767147044629,-278.6904084,0.00017842,2]
[400138634,1767147044639,-1152.0,0.0001792,2]
[400138636,1767147044648,-500.0,0.00018,2]
[400138638,1767147044657,-151.0,0.00018082,2]
[400138640,1767147044667,-151.0,0.00018082,2]
[400138642,1767147044676,-4500.0,0.00018082,2]
[400138644,1767147044685,-2707.91036418,0.00018082,2]
[400138646,1767147044695,-4609.0,0.00018092,2]
[400138648,1767147044704,-500.0,0.00018179,2]
[400138650,1767147044713,-408.44798641,0.00018455,2]
[400138652,1767147044722,-7628.02,0.00018573,2]
[400138654,1767147044731,-1000.0,0.00018603,2]
[400138656,1767147044740,-244.0,0.00018603,2]
[400138658,1767147044749,-5000.0,0.0001863,2]
[400138660,1767147044759,-302.8788636,0.000189,2]
[400138662,1767147044768,-302.90913937,0.000189,2]
[400138664,1767147044777,-302.8788636,0.00019089,2]
[400138666,1767147044787,-302.90913937,0.00019089,2]
[400138668,1767147044796,-500.0,0.00019136,2]
[400138670,1767147044805,-533.2,0.00019178,2]
[400138672,1767147044814,-533.2,0.00019178,2]
[400138674,1767147044824,-533.2,0.00019178,2]
[400138676,1767147044833,-533.2,0.00019178,2]
[400138678,1767147044842,-533.2,0.00019178,2]
[400138680,1767147044851,-533.2,0.00019178,2]
[400138682,1767147044860,-533.2,0.00019178,2]
[400138684,1767147044869,-533.2,0.00019178,2]
[400138686,1767147044879,-533.2,0.00019178,2]
[400138699,1767147044997,-533.2,0.00019178,2]
[400138701,1767147045007,-533.2,0.00019178,2]
[400138703,1767147045016,-533.2,0.00019178,2]
[400138705,1767147045025,-533.2,0.00019178,2]
[400138707,1767147045035,-533.2,0.00019178,2]
[400138709,1767147045044,-533.2,0.00019178,2]
[400138711,1767147045054,-533.2,0.00019178,2]
[400138713,1767147045064,-533.2,0.00019178,2]
[400138715,1767147045074,-533.2,0.00019178,2]
[400138717,1767147045083,-533.2,0.00019178,2]
[400138719,1767147045092,-533.2,0.00019178,2]
[400138721,1767147045102,-533.2,0.00019178,2]
[400138723,1767147045111,-533.2,0.00019178,2]
[400138725,1767147045120,-533.2,0.00019178,2]
[400138727,1767147045130,-533.42551435,0.00019178,2]
[400138729,1767147045139,-500.0,0.00019178,2]
[400138731,1767147045149,-500.0,0.00019178,2]
[400138733,1767147045158,-500.0,0.00019178,2]
[400138735,1767147045167,-500.0,0.00019178,2]
[400138737,1767147045176,-500.0,0.00019178,2]
[400138739,1767147045185,-500.0,0.00019178,2]
[400138741,1767147045195,-500.0,0.00019178,2]
[400138743,1767147045204,-500.0,0.00019178,2]
[400138745,1767147045214,-500.0,0.00019178,2]
[400138747,1767147045222,-500.0,0.00019178,2]
[400138749,1767147045231,-500.0,0.00019178,2]
[400138751,1767147045240,-500.0,0.00019178,2]
[400138753,1767147045250,-500.0,0.00019178,2]
[400138755,1767147045260,-500.0,0.00019178,2]
[400138757,1767147045269,-500.0,0.00019178,2]
[400138759,1767147045281,-500.0,0.00019178,2]
[400138761,1767147045291,-500.0,0.00019178,2]
[400138763,1767147045300,-500.0,0.00019178,2]
[400138765,1767147045310,-500.0,0.00019178,2]
[400138767,1767147045320,-500.0,0.00019178,2]
[400138769,1767147045333,-500.0,0.00019178,2]
[400138771,1767147045343,-500.0,0.00019178,2]
[400138773,1767147045353,-500.0,0.00019178,2]
[400138775,1767147045363,-500.0,0.00019178,2]
[400138777,1767147045374,-500.0,0.00019178,2]
[400138779,1767147045384,-500.0,0.00019178,2]
[400138781,1767147045396,-500.0,0.00019178,2]
[400138783,1767147045406,-500.0,0.00019178,2]
[400138785,1767147045415,-500.0,0.00019178,2]
[400138787,1767147045425,-500.0,0.00019178,2]
[400138789,1767147045434,-500.0,0.00019178,2]
[400138791,1767147045443,-500.0,0.00019178,2]
[400138793,1767147045452,-500.0,0.00019178,2]
[400138795,1767147045461,-500.0,0.00019178,2]
[400138797,1767147045471,-500.0,0.00019178,2]
[400138799,1767147045480,-500.0,0.00019178,2]
[400138801,1767147045491,-500.0,0.00019178,2]
[400138803,1767147045501,-500.0,0.00019178,2]
[400138805,1767147045511,-500.0,0.00019178,2]
[400138807,1767147045520,-500.0,0.00019178,2]
[400138809,1767147045530,-500.0,0.00019178,2]
[400138811,1767147045541,-500.0,0.00019178,2]
[400138816,1767147045551,-500.0,0.00019178,2]
[400138819,1767147045561,-500.0,0.00019178,2]
[400138822,1767147045570,-500.0,0.00019178,2]
[400138824,1767147045580,-500.0,0.00019178,2]
[400138826,1767147045590,-500.0,0.00019178,2]
[400138828,1767147045600,-500.0,0.00019178,2]
[400138830,1767147045610,-500.0,0.00019178,2]
[400138832,1767147045619,-500.0,0.00019178,2]
[400138834,1767147045629,-488.094127,0.00019178,2]
[400138835,1767147045638,-488.094127,0.00019178,2]
[400138836,1767147045647,-488.094127,0.00019178,2]
[400138837,1767147045657,-488.094127,0.00019178,2]
[400138838,1767147045666,-5500.0,0.00019178,2]
[400138839,1767147045676,-150.0,0.00019178,2]
[400138840,1767147045686,-1173.6,0.000192,2]
[400138841,1767147045695,-165.41,0.000192,2]
[400138842,1767147045704,-160.68,0.000192,2]
[400138843,1767147045715,-166.47,0.000192,2]
[400138844,1767147045724,-14171.13,0.000192,2]
[400138846,1767147045733,-219.435139,0.000192,2]
[400138848,1767147045743,-219.435139,0.000192,2]
[400138849,1767147045752,-151.0,0.000192,2]
[400138851,1767147045761,-219.435139,0.000192,2]
[400138853,1767147045770,-151.0,0.000192,2]
[400138854,1767147045779,-219.435139,0.000192,2]
[400138855,1767147045789,-302.8788636,0.00019278,2]
[400138856,1767147045798,-302.90913937,0.00019278,2]
[400138857,1767147045808,-300.0,0.00019315,2]
[400138858,1767147045817,-450.0,0.00019452,2]
[400138859,1767147045827,-302.8788636,0.00019467,2]
[400138860,1767147045836,-302.90913937,0.00019467,2]
[400138861,1767147045847,-1030.57947503,0.00019488,2]
[400138862,1767147045856,-11704.5472021,0.0001955,2]
[400138863,1767147045865,-600.0,0.00019589,2]
[400138864,1767147045874,-302.8788636,0.00019656,2]
[400138865,1767147045884,-302.90913937,0.00019656,2]
[400138866,1767147045893,-1613.0,0.00019665,2]
[400138867,1767147045903,-2252.58784972,0.00019726,2]
[400138868,1767147045912,-6000.0,0.00019726,2]
[400138869,1767147045921,-556.55106819,0.00019726,2]
[400138870,1767147045931,-8899.36,0.00019734,2]
[400138871,1767147045940,-454.3182954,0.00019845,4]
[400138872,1767147045950,-454.36370906,0.00019845,4]
[400138873,1767147045959,-4965.0,0.00019901,2]
[400138874,1767147045968,-1003.0,0.0002,2]
[400138875,1767147045978,-1105.62734024,0.0002,2]
[400138876,1767147045987,-179.55824252,0.0002,2]
[400138877,1767147045996,-210.10713874,0.0002,2]
[400138878,1767147046005,-1253.52896227,0.0002,2]
[400138879,1767147046015,-454.3182954,0.00020034,4]
[400138880,1767147046025,-454.36370906,0.00020034,4]
[400138881,1767147046035,-500.0,0.00020143,2]
[400138882,1767147046044,-454.3182954,0.00020223,4]
[400138883,1767147046054,-454.36370906,0.00020223,4]
[400138884,1767147046063,-6500.0,0.00020274,2]
[400138885,1767147046073,-454.3182954,0.00020412,4]
[400138886,1767147046083,-454.36370906,0.00020412,4]
[400138887,1767147046093,-223.2,0.00020428,2]
[400138889,1767147046103,-456.18866015,0.00020455,2]
[400138891,1767147046111,-1000.0,0.00020464,2]
[400138893,1767147046121,-492.0,0.00020464,2]
[400138895,1767147046131,-317.08606747,0.00020601,4]
[400138897,1767147046140,-454.36370901,0.00020601,4]
[400138899,1767147046151,-217.98838976,0.00020822,2]
[400138901,1767147046159,-375.44797495,0.0002086,10]
[400138903,1767147046169,-1168.06182939,0.00020881,2]
[400138905,1767147046178,-10170.69,0.00020895,2]
[400138906,1767147046187,-14171.13,0.000209,2]
[400138907,1767147046197,-209.824,0.00021023,2]
[400138908,1767147046207,-500.0,0.00021203,2]
[400138909,1767147046216,-2000.0,0.00021283,7]
[400138911,1767147046225,-165.41,0.000215,2]
[400138912,1767147046235,-2258.0,0.0002158,2]
[400138914,1767147046244,-23638.71,0.000217,3]
[400138916,1767147046254,-207.03821037,0.00021719,5]
[400138918,1767147046263,-156.47294887,0.00021719,5]
[400138920,1767147046273,-1030.57947503,0.00021817,2]
[400138921,1767147046282,-1173.6,0.000219,2]
[400138922,1767147046292,-1000.0,0.000219,2]
[400138923,1767147046302,-505.57693631,0.00021917,2]
[400138925,1767147046311,-598.98698811,0.00021917,2]
[400138927,1767147046321,-500.35125499,0.00021917,2]
[400138929,1767147046333,-3015.18284076,0.00021917,2]
[400138930,1767147046342,-504.10733238,0.00021917,2]
[400138932,1767147046351,-429.75196614,0.00021917,2]
[400138934,1767147046360,-278.87252164,0.00021917,2]
[400138936,1767147046371,-530.6561841,0.00021917,2]
[400138937,1767147046380,-353.79507362,0.00021917,2]
[400138939,1767147046389,-493.91358717,0.00021917,2]
[400138941,1767147046399,-224.27897709,0.00021917,2]
[400138943,1767147046409,-228.27143418,0.00021917,2]
[400138945,1767147046419,-512.82699373,0.00021917,2]
[400138946,1767147046428,-401.74419702,0.00021917,2]
[400138948,1767147046438,-484.56028366,0.00021917,2]
[400138950,1767147046446,-255.54870036,0.00021917,2]
[400138952,1767147046456,-234.33498331,0.00021917,2]
[400138953,1767147046465,-166.8788309,0.00021917,2]
[400138955,1767147046475,-494.63104236,0.00021917,2]
[400138957,1767147046487,-231.13812863,0.00021917,2]
[400138959,1767147046496,-388.90254225,0.00021917,2]
[400138961,1767147046505,-509.12072007,0.00021917,2]
[400138963,1767147046514,-375.17667033,0.00021917,2]
[400138965,1767147046523,-439.26042852,0.00021917,2]
[400138967,1767147046532,-425.72792182,0.00021917,2]
[400138969,1767147046541,-350.88472282,0.00021917,2]
[400138971,1767147046551,-501.28357159,0.00021917,2]
[400138973,1767147046560,-500.0,0.00021917,2]
[400138975,1767147046570,-500.77061581,0.00021917,2]
[400138977,1767147046579,-500.20287395,0.00021917,2]
[400138979,1767147046588,-229.93818586,0.00021917,2]
[400138981,1767147046597,-512.4312718,0.00021917,2]
[400138983,1767147046611,-489.63206501,0.00021917,2]
[400138985,1767147046621,-501.49047057,0.00021917,2]
[400138987,1767147046630,-384.58012515,0.00021917,2]
[400138989,1767147046640,-270.1859473,0.00021917,2]
[400138991,1767147046649,-424.73441105,0.00021917,2]
[400138993,1767147046660,-388.31492034,0.00021917,2]
[400138995,1767147046669,-183.24711509,0.00021917,2]
[400138997,1767147046679,-482.58366291,0.00021917,2]
[400138999,1767147046688,-508.47252761,0.00021917,2]
[400139001,1767147046697,-236.37317132,0.00021917,2]
[400139003,1767147046707,-438.63471452,0.00021917,2]
[400139005,1767147046716,-240.63871679,0.00021917,2]
[400139007,1767147046726,-626.93191148,0.00021917,2]
[400139009,1767147046735,-346.52905766,0.00021917,2]
[400139011,1767147046748,-240.26102299,0.00021917,2]
[400139013,1767147046758,-306.95719636,0.00021917,2]
[400139015,1767147046767,-410.00093253,0.00021917,2]
[400139017,1767147046777,-437.54826434,0.00021917,2]
[400139019,1767147046787,-231.35721436,0.00021917,2]
[400139021,1767147046797,-394.89659577,0.00021917,2]
[400139023,1767147046806,-335.63417223,0.00021917,2]
[400139025,1767147046815,-211.38581713,0.00021917,2]
[400139027,1767147046825,-268.8960386,0.00021917,2]
[400139029,1767147046834,-323.31192559,0.00021917,2]
[400139031,1767147046843,-460.57142194,0.00021917,2]
[400139033,1767147046852,-172.064977,0.00021917,2]
[400139035,1767147046863,-293.05034295,0.00021917,2]
[400139037,1767147046872,-481.2025443,0.00021917,2]
[400139039,1767147046882,-641.27434624,0.00021917,2]
[400139041,1767147046891,-497.38962208,0.00021917,2]
[400139043,1767147046900,-501.76468192,0.00021917,2]
[400139045,1767147046909,-421.47478759,0.00021917,2]
[400139047,1767147046919,-305.02890404,0.00021917,2]
[400139049,1767147046929,-289.65782428,0.00021917,2]
[400139051,1767147046938,-504.36803762,0.00021917,2]
[400139053,1767147046947,-952.37,0.00021917,2]
[400139055,1767147046958,-180.00758644,0.00021917,2]
[400139057,1767147046967,-252.53180956,0.00021917,2]
[400139059,1767147046977,-296.46462733,0.00021917,2]
[400139061,1767147046986,-171.72456496,0.00021917,2]
[400139063,1767147046995,-509.35779907,0.00021917,2]
[400139064,1767147047004,-253.20522775,0.00021917,2]
[400139066,1767147047013,-504.88100054,0.00021917,2]
[400139068,1767147047023,-273.42014374,0.00021917,2]
[400139070,1767147047033,-363.03412122,0.00021917,2]
[400139072,1767147047042,-292.60725648,0.00021917,2]
[400139074,1767147047052,-514.42397018,0.00021917,2]
[400139076,1767147047062,-451.94599016,0.00021917,2]
[400139078,1767147047071,-338.18425125,0.00021917,2]
[400139080,1767147047080,-500.0,0.00021917,2]
[400139082,1767147047090,-301.70078689,0.00021917,2]
[400139084,1767147047099,-228.21786813,0.00021917,2]
[400139086,1767147047108,-313.76870927,0.00021917,2]
[400139088,1767147047118,-430.38421098,0.00021917,2]
[400139090,1767147047127,-504.51330229,0.00021917,2]
[400139091,1767147047136,-452.39889584,0.00021917,2]
[400139093,1767147047145,-463.13135716,0.00021917,2]
[400139095,1767147047157,-296.62905501,0.00021917,2]
[400139097,1767147047167,-579.37601546,0.00021917,2]
[400139099,1767147047176,-270.39811728,0.00021917,2]
[400139101,1767147047186,-452.62637168,0.00021917,2]
[400139103,1767147047195,-566.6059812,0.00021917,2]
[400139105,1767147047205,-428.85502416,0.00021917,2]
[400139107,1767147047214,-317.01885779,0.00021917,2]
[400139109,1767147047223,-363.76566066,0.00021917,2]
[400139111,1767147047232,-421.61468952,0.00021917,2]
[400139113,1767147047241,-503.73567789,0.00021917,2]
[400139115,1767147047251,-525.64968778,0.00021917,2]
[400139117,1767147047260,-316.21598207,0.00021917,2]
[400139119,1767147047271,-518.3081957,0.00021917,2]
[400139120,1767147047280,-355.3743631,0.00021917,2]
[400139122,1767147047290,-452.1954474,0.00021917,2]
[400139124,1767147047299,-524.92123886,0.00021917,2]
[400139126,1767147047308,-567.16155068,0.00021917,2]
[400139128,1767147047317,-557.39567939,0.00021917,2]
[400139130,1767147047330,-271.82436363,0.00021917,2]
[400139132,1767147047339,-500.0,0.00021917,2]
[400139134,1767147047349,-372.69833567,0.00021917,2]
[400139136,1767147047358,-199.45943565,0.00021917,2]
[400139138,1767147047367,-311.77339513,0.00021917,2]
[400139139,1767147047376,-610.80658286,0.00021917,2]
[400139141,1767147047385,-591.77298457,0.00021917,2]
[400139143,1767147047395,-404.34206878,0.00021917,2]
[400139145,1767147047405,-257.68097,0.00021917,2]
[400139147,1767147047417,-543.07145777,0.00021917,2]
[400139149,1767147047426,-530.31130776,0.00021917,2]
[400139151,1767147047436,-427.00692737,0.00021917,2]
[400139153,1767147047446,-500.0,0.00021917,2]
[400139155,1767147047456,-370.813232,0.00021917,2]
[400139157,1767147047465,-516.54845659,0.00021917,2]
[400139159,1767147047475,-3845.811247,0.00021917,2]
[400139161,1767147047484,-581.62899778,0.00021917,2]
[400139163,1767147047493,-502.46290907,0.00021917,2]
[400139165,1767147047502,-512.27195392,0.00021917,2]
[400139167,1767147047511,-617.18361714,0.00021917,2]
[400139168,1767147047521,-557.56149596,0.00021917,2]
[400139170,1767147047530,-465.73088002,0.00021917,2]
[400139172,1767147047539,-508.18612859,0.00021917,2]
[400139174,1767147047548,-318.52617651,0.00021917,2]
[400139186,1767147047646,-563.12950415,0.00021917,2]
[400139188,1767147047667,-520.49213089,0.00021917,2]
[400139190,1767147047677,-599.95501005,0.00021917,2]
[400139192,1767147047686,-432.64954775,0.00021917,2]
[400139193,1767147047695,-384.50178655,0.00021917,2]
[400139195,1767147047704,-235.40908776,0.00021917,2]
[400139197,1767147047713,-221.88922462,0.00021917,2]
[400139199,1767147047723,-503.15657655,0.00021917,2]
[400139201,1767147047732,-224.92658771,0.00021917,2]
[400139203,1767147047742,-536.31769473,0.00021917,2]
[400139205,1767147047751,-488.05873299,0.00021917,2]
[400139207,1767147047761,-370.12781361,0.00021917,2]
[400139208,1767147047770,-496.54883015,0.00021917,2]
[400139210,1767147047779,-489.15904473,0.00021917,2]
[400139212,1767147047789,-500.0,0.00021917,2]
[400139214,1767147047798,-500.0,0.00021917,2]
[400139216,1767147047808,-503.90976146,0.00021917,2]
[400139218,1767147047817,-504.56539008,0.00021917,2]
[400139220,1767147047826,-552.86099206,0.00021917,2]
[400139222,1767147047836,-384.56880518,0.00021917,2]
[400139224,1767147047845,-174.1654428,0.00021917,2]
[400139226,1767147047855,-503.00820269,0.00021917,2]
[400139228,1767147047864,-210.0897392,0.00021917,2]
[400139230,1767147047873,-506.55449777,0.00021917,2]
[400139232,1767147047882,-246.24202534,0.00021917,2]
[400139234,1767147047892,-500.0,0.00021917,2]
[400139236,1767147047901,-302.93599925,0.00021917,2]
[400139238,1767147047911,-277.46495324,0.00021917,2]
[400139240,1767147047919,-470.96870154,0.00021917,2]
[400139241,1767147047929,-362.71467359,0.00021917,2]
[400139243,1767147047939,-338.7068717,0.00021917,2]
[400139245,1767147047948,-526.92284921,0.00021917,2]
[400139247,1767147047957,-181.58814641,0.00021917,2]
[400139249,1767147047967,-245.87963468,0.00021917,2]
[400139251,1767147047976,-475.47980033,0.00021917,2]
[400139253,1767147047986,-506.03871466,0.00021917,2]
[400139255,1767147047995,-496.84809073,0.00021917,2]
[400139257,1767147048005,-1000.49997863,0.00021917,2]
[400139259,1767147048014,-570.30127706,0.00021917,2]
[400139260,1767147048023,-500.0,0.00021917,2]
[400139262,1767147048032,-489.85090208,0.00021917,2]
[400139264,1767147048041,-219.19540566,0.00021917,2]
[400139265,1767147048050,-499.794244,0.00021917,2]
[400139267,1767147048058,-230.99618551,0.00021917,2]
[400139269,1767147048067,-499.794244,0.00021917,2]
[400139271,1767147048077,-499.794244,0.00021917,2]
[400139273,1767147048087,-499.794244,0.00021917,2]
[400139275,1767147048096,-500.0,0.00021917,2]
[400139277,1767147048106,-543.79908277,0.00021917,2]
[400139279,1767147048116,-278.8646826,0.00021917,2]
[400139281,1767147048126,-523.70752936,0.00021917,2]
[400139283,1767147048135,-505.71200436,0.00021917,2]
[400139285,1767147048145,-296.30754401,0.00021917,2]
[400139287,1767147048155,-240.64346237,0.00021917,2]
[400139289,1767147048164,-422.54919443,0.00021917,2]
[400139290,1767147048173,-528.50741648,0.00021917,2]
[400139292,1767147048183,-500.0,0.00021917,2]
[400139294,1767147048193,-625.94221804,0.00021917,2]
[400139296,1767147048203,-621.43392376,0.00021917,2]
[400139298,1767147048213,-397.81591437,0.00021917,2]
[400139300,1767147048223,-229.06908316,0.00021917,2]
[400139302,1767147048233,-417.55248059,0.00021917,2]
[400139304,1767147048242,-616.92399388,0.00021917,2]
[400139306,1767147048251,-246.91429969,0.00021917,2]
[400139308,1767147048260,-199.12657408,0.00021917,2]
[400139310,1767147048270,-248.65132653,0.00021917,2]
[400139312,1767147048279,-3532.14,0.00021917,2]
[400139314,1767147048289,-184.45143146,0.00021917,2]
[400139316,1767147048298,-214.91491184,0.00021917,2]
[400139318,1767147048308,-499.01488879,0.00021917,2]
[400139320,1767147048317,-494.89632367,0.00021917,2]